[Event "Late-Titled-Tuesday-Blitz-March-19-2024"]
[Site "Chess.com"]
[Date "2024.03.19"]
[Round "5"]
[White "profedechess93"]
[Black "artin10862"]
[Result "1-0"]
[WhiteElo "2655"]
[BlackElo "2922"]
[TimeControl "180+1"]
[EndTime "14:55:47 PDT"]
[Termination "profedechess93 won by checkmate"]

1. e4 {[%clk 0:02:57.1]} 1... e5 {[%clk 0:02:59.8]} 2. Nf3 {[%clk 0:02:57.3]}
2... Nc6 {[%clk 0:02:59.7]} 3. Bc4 {[%clk 0:02:58]} 3... Bc5 {[%clk 0:02:58.3]}
4. b4 {[%clk 0:02:57.8]} 4... Bxb4 {[%clk 0:02:57.3]} 5. c3 {[%clk 0:02:57.5]}
5... Ba5 {[%clk 0:02:57.4]} 6. d4 {[%clk 0:02:58.1]} 6... d6 {[%clk 0:02:57.2]}
7. Qb3 {[%clk 0:02:57.6]} 7... Qd7 {[%clk 0:02:56.9]} 8. Bb5 {[%clk 0:02:58.2]}
8... a6 {[%clk 0:02:23.7]} 9. Bxc6 {[%clk 0:02:57.3]} 9... Qxc6 {[%clk
0:02:23.6]} 10. O-O {[%clk 0:02:58.2]} 10... Qb5 {[%clk 0:02:10.7]} 11. dxe5
{[%clk 0:02:24.8]} 11... dxe5 {[%clk 0:02:08.8]} 12. Qc2 {[%clk 0:02:08.9]}
12... f6 {[%clk 0:01:56.2]} 13. c4 {[%clk 0:01:59.3]} 13... Qc6 {[%clk
0:01:51.9]} 14. Ba3 {[%clk 0:01:58.3]} 14... Be6 {[%clk 0:01:49]} 15. Nfd2
{[%clk 0:01:33.9]} 15... Nh6 {[%clk 0:01:33.1]} 16. Nb3 {[%clk 0:00:44.9]} 16...
Bb6 {[%clk 0:01:32.6]} 17. c5 {[%clk 0:00:43.1]} 17... Ba7 {[%clk 0:01:32.3]}
18. Nc3 {[%clk 0:00:36.3]} 18... b5 {[%clk 0:01:25.6]} 19. Na5 {[%clk
0:00:33.1]} 19... Qd7 {[%clk 0:01:24.3]} 20. c6 {[%clk 0:00:31.2]} 20... Qf7
{[%clk 0:01:23.7]} 21. Rad1 {[%clk 0:00:26.8]} 21... Bd4 {[%clk 0:01:08.7]} 22.
Kh1 {[%clk 0:00:25.6]} 22... Qh5 {[%clk 0:01:00.4]} 23. Nd5 {[%clk 0:00:20.6]}
23... Rc8 {[%clk 0:00:52.4]} 24. Rxd4 {[%clk 0:00:17.2]} 24... exd4 {[%clk
0:00:53.3]} 25. Qc5 {[%clk 0:00:17.6]} 25... Qf7 {[%clk 0:00:53.3]} 26. h3
{[%clk 0:00:13.7]} 26... Rd8 {[%clk 0:00:48.6]} 27. Nb7 {[%clk 0:00:11.5]} 27...
Rc8 {[%clk 0:00:42.1]} 28. Bb4 {[%clk 0:00:11.3]} 28... Ng8 {[%clk 0:00:38.4]}
29. Nxc7+ {[%clk 0:00:10.2]} 29... Qxc7 {[%clk 0:00:33]} 30. Nd6+ {[%clk
0:00:10.5]} 30... Kf8 {[%clk 0:00:26.3]} 31. Nxc8+ {[%clk 0:00:10.7]} 31... Kf7
{[%clk 0:00:25.8]} 32. Nd6+ {[%clk 0:00:10.7]} 32... Kg6 {[%clk 0:00:26.1]} 33.
f4 {[%clk 0:00:10.5]} 33... Bc8 {[%clk 0:00:14.3]} 34. f5+ {[%clk 0:00:09.6]}
34... Kh6 {[%clk 0:00:14.9]} 35. Bd2+ {[%clk 0:00:09.3]} 35... g5 {[%clk
0:00:14.1]} 36. fxg6+ {[%clk 0:00:09.6]} 36... Kxg6 {[%clk 0:00:14.6]} 37. h4
{[%clk 0:00:08.6]} 37... Ne7 {[%clk 0:00:12]} 38. h5+ {[%clk 0:00:06]} 38... Kg7
{[%clk 0:00:12.7]} 39. h6+ {[%clk 0:00:06.6]} 39... Kg6 {[%clk 0:00:12.5]} 40.
Rf3 {[%clk 0:00:06.5]} 40... f5 {[%clk 0:00:03.7]} 41. Qe5 {[%clk 0:00:05]}
41... Nxc6 {[%clk 0:00:01.9]} 42. Rg3+ {[%clk 0:00:04.1]} 42... Kh5 {[%clk
0:00:02.4]} 43. Rg5+ {[%clk 0:00:03.8]} 43... Kh4 {[%clk 0:00:02.2]} 44. Qh2#
{[%clk 0:00:04.2]} 1-0

[Event "Late-Titled-Tuesday-Blitz-March-19-2024"]
[Site "Chess.com"]
[Date "2024.03.19"]
[Round "5"]
[White "ArmanGhevondyanchess"]
[Black "Charodej1"]
[Result "0-1"]
[WhiteElo "2586"]
[BlackElo "2391"]
[TimeControl "180+1"]
[EndTime "14:55:48 PDT"]
[Termination "Charodej1 won by checkmate"]

1. Nf3 {[%clk 0:03:00.9]} 1... d5 {[%clk 0:02:58.7]} 2. g3 {[%clk 0:02:59.6]}
2... Nf6 {[%clk 0:02:59.4]} 3. Bg2 {[%clk 0:02:59.7]} 3... e6 {[%clk 0:02:58.4]}
4. O-O {[%clk 0:02:59.6]} 4... Be7 {[%clk 0:02:59.1]} 5. d4 {[%clk 0:02:58.7]}
5... O-O {[%clk 0:02:59.6]} 6. c4 {[%clk 0:02:58.1]} 6... dxc4 {[%clk
0:02:59.6]} 7. Ne5 {[%clk 0:02:58.1]} 7... c5 {[%clk 0:02:53.8]} 8. dxc5 {[%clk
0:02:57.6]} 8... Bxc5 {[%clk 0:02:52.7]} 9. Nxc4 {[%clk 0:02:55.9]} 9... Nc6
{[%clk 0:02:47.1]} 10. Nc3 {[%clk 0:02:54.6]} 10... Qe7 {[%clk 0:02:36.1]} 11.
Be3 {[%clk 0:02:32.1]} 11... e5 {[%clk 0:02:10.2]} 12. Bxc5 {[%clk 0:02:13]}
12... Qxc5 {[%clk 0:02:09.8]} 13. Ne3 {[%clk 0:02:13.9]} 13... Be6 {[%clk
0:02:03.2]} 14. Rc1 {[%clk 0:02:10.7]} 14... Rfd8 {[%clk 0:01:54.3]} 15. Ncd5
{[%clk 0:02:10.9]} 15... Qa5 {[%clk 0:01:15.7]} 16. Nxf6+ {[%clk 0:02:09.4]}
16... gxf6 {[%clk 0:01:16.6]} 17. Qe1 {[%clk 0:02:02.5]} 17... Qxa2 {[%clk
0:00:52.6]} 18. f4 {[%clk 0:02:01.5]} 18... Qxb2 {[%clk 0:00:41.1]} 19. f5
{[%clk 0:01:59.7]} 19... Qb6 {[%clk 0:00:29.3]} 20. Qf2 {[%clk 0:01:54.5]} 20...
Bb3 {[%clk 0:00:29]} 21. Kh1 {[%clk 0:01:47.8]} 21... Kg7 {[%clk 0:00:23.1]} 22.
g4 {[%clk 0:01:47.5]} 22... h6 {[%clk 0:00:20.4]} 23. Qg3 {[%clk 0:01:46.7]}
23... a5 {[%clk 0:00:19.5]} 24. h4 {[%clk 0:01:45.3]} 24... Rh8 {[%clk
0:00:19.2]} 25. Rb1 {[%clk 0:01:40]} 25... a4 {[%clk 0:00:19]} 26. Nd5 {[%clk
0:01:26.2]} 26... Qd4 {[%clk 0:00:18.9]} 27. e3 {[%clk 0:01:17.6]} 27... Qd3
{[%clk 0:00:15.4]} 28. Nxf6 {[%clk 0:01:09.3]} 28... Kxf6 {[%clk 0:00:12.9]} 29.
g5+ {[%clk 0:01:09.8]} 29... Ke7 {[%clk 0:00:11.5]} 30. f6+ {[%clk 0:01:07]}
30... Kf8 {[%clk 0:00:09.8]} 31. Rbc1 {[%clk 0:00:48.2]} 31... hxg5 {[%clk
0:00:09.4]} 32. Qxg5 {[%clk 0:00:48.5]} 32... Qh7 {[%clk 0:00:08.6]} 33. Kg1
{[%clk 0:00:35.6]} 33... Qg6 {[%clk 0:00:07.6]} 34. Rxc6 {[%clk 0:00:28.6]}
34... Qxg5 {[%clk 0:00:07.2]} 35. hxg5 {[%clk 0:00:23.7]} 35... bxc6 {[%clk
0:00:07.7]} 36. Rc1 {[%clk 0:00:23.2]} 36... a3 {[%clk 0:00:07.5]} 37. Bxc6
{[%clk 0:00:19.8]} 37... Rc8 {[%clk 0:00:07.5]} 38. Ra1 {[%clk 0:00:14.6]} 38...
a2 {[%clk 0:00:05.4]} 39. Be4 {[%clk 0:00:13.9]} 39... Be6 {[%clk 0:00:05.1]}
40. Kf2 {[%clk 0:00:13.4]} 40... Rh2+ {[%clk 0:00:04.8]} 41. Kg3 {[%clk
0:00:13.7]} 41... Rb2 {[%clk 0:00:04.4]} 42. Kh4 {[%clk 0:00:12.4]} 42... Rb4
{[%clk 0:00:03.7]} 43. g6 {[%clk 0:00:12.5]} 43... Rxe4+ {[%clk 0:00:03.9]} 44.
Kg5 {[%clk 0:00:13.1]} 44... fxg6 {[%clk 0:00:04.2]} 45. Rh1 {[%clk 0:00:10.9]}
45... Rg4+ {[%clk 0:00:04.9]} 46. Kh6 {[%clk 0:00:11.1]} 46... Kf7 {[%clk
0:00:05.4]} 47. Kh7 {[%clk 0:00:10.8]} 47... Rg5 {[%clk 0:00:05]} 48. e4 {[%clk
0:00:07.7]} 48... Rh5+ {[%clk 0:00:04.7]} 49. Rxh5 {[%clk 0:00:07.5]} 49... gxh5
{[%clk 0:00:05.5]} 50. Kh6 {[%clk 0:00:07.4]} 50... a1=Q {[%clk 0:00:05.7]} 51.
Kg5 {[%clk 0:00:08.3]} 51... Qg1+ {[%clk 0:00:05.7]} 52. Kh6 {[%clk 0:00:08.4]}
52... Qg6# {[%clk 0:00:05.5]} 0-1

[Event "Late-Titled-Tuesday-Blitz-March-19-2024"]
[Site "Chess.com"]
[Date "2024.03.19"]
[Round "5"]
[White "ViktoriyaTarasova"]
[Black "Baronessa08"]
[Result "0-1"]
[WhiteElo "2329"]
[BlackElo "2586"]
[TimeControl "180+1"]
[EndTime "14:55:51 PDT"]
[Termination "Baronessa08 won on time"]

1. d4 {[%clk 0:03:00.9]} 1... d5 {[%clk 0:02:59.3]} 2. c4 {[%clk 0:02:59.7]}
2... c6 {[%clk 0:02:59.6]} 3. Nf3 {[%clk 0:02:59.2]} 3... Nf6 {[%clk 0:02:59.6]}
4. Nc3 {[%clk 0:02:59.5]} 4... dxc4 {[%clk 0:02:59]} 5. a4 {[%clk 0:02:59.6]}
5... Bf5 {[%clk 0:02:57.5]} 6. Ne5 {[%clk 0:02:59.8]} 6... Nbd7 {[%clk 0:02:53]}
7. Nxc4 {[%clk 0:02:59.8]} 7... e6 {[%clk 0:02:52.5]} 8. f3 {[%clk 0:02:57.2]}
8... Bb4 {[%clk 0:02:51.9]} 9. Kf2 {[%clk 0:02:56.3]} 9... h6 {[%clk 0:02:35.7]}
10. e4 {[%clk 0:02:56]} 10... Bh7 {[%clk 0:02:34.9]} 11. Be3 {[%clk 0:02:50.8]}
11... O-O {[%clk 0:02:34.3]} 12. Be2 {[%clk 0:02:47.6]} 12... Re8 {[%clk
0:02:07]} 13. a5 {[%clk 0:02:46.9]} 13... b5 {[%clk 0:01:55.8]} 14. axb6 {[%clk
0:02:38.8]} 14... Nxb6 {[%clk 0:01:55.9]} 15. Ne5 {[%clk 0:02:31.9]} 15... Qc7
{[%clk 0:01:41.1]} 16. Qb3 {[%clk 0:02:25.4]} 16... Bd6 {[%clk 0:01:38.1]} 17.
Nd3 {[%clk 0:01:45.2]} 17... Nfd7 {[%clk 0:01:25.2]} 18. f4 {[%clk 0:01:31.6]}
18... Rab8 {[%clk 0:00:59.4]} 19. Qa2 {[%clk 0:01:18.1]} 19... Rb7 {[%clk
0:00:55.5]} 20. Rhc1 {[%clk 0:01:15.4]} 20... Qd8 {[%clk 0:00:53.9]} 21. g3
{[%clk 0:01:12.3]} 21... Bf8 {[%clk 0:00:39.4]} 22. Bf3 {[%clk 0:01:09.4]} 22...
Bg6 {[%clk 0:00:30.7]} 23. Qa6 {[%clk 0:00:47.9]} 23... Qb8 {[%clk 0:00:30.4]}
24. Ra2 {[%clk 0:00:34.7]} 24... h5 {[%clk 0:00:29.9]} 25. h4 {[%clk 0:00:33.5]}
25... Nf6 {[%clk 0:00:26]} 26. Kg2 {[%clk 0:00:32.5]} 26... Ng4 {[%clk
0:00:24.8]} 27. Bg1 {[%clk 0:00:30.8]} 27... Rd8 {[%clk 0:00:21]} 28. Bxg4
{[%clk 0:00:20.7]} 28... hxg4 {[%clk 0:00:20.2]} 29. Ne5 {[%clk 0:00:21.4]}
29... c5 {[%clk 0:00:19]} 30. Rd1 {[%clk 0:00:09.3]} 30... Rc8 {[%clk
0:00:16.7]} 31. Nxg6 {[%clk 0:00:08.7]} 31... fxg6 {[%clk 0:00:16.2]} 32. Qe2
{[%clk 0:00:07.9]} 32... cxd4 {[%clk 0:00:14.8]} 33. Bxd4 {[%clk 0:00:07.4]}
33... Nc4 {[%clk 0:00:14.9]} 34. Qxg4 {[%clk 0:00:05.7]} 34... Rxb2+ {[%clk
0:00:10.6]} 35. Rxb2 {[%clk 0:00:06.1]} 35... Qxb2+ {[%clk 0:00:11.5]} 36. Kh1
{[%clk 0:00:06.7]} 36... Rc6 {[%clk 0:00:05.1]} 37. Qxg6 {[%clk 0:00:06.8]}
37... Qc2 {[%clk 0:00:04.4]} 38. Qe8 {[%clk 0:00:04.8]} 38... Ra6 {[%clk
0:00:04]} 39. Qh5 {[%clk 0:00:01.1]} 39... Qb3 {[%clk 0:00:02.7]} 40. Qg4 {[%clk
0:00:01.4]} 40... Qc2 {[%clk 0:00:02.3]} 41. h5 {[%clk 0:00:01.8]} 41... Kh8
{[%clk 0:00:01.9]} 42. h6 {[%clk 0:00:01.4]} 42... e5 {[%clk 0:00:02.5]} 43.
hxg7+ {[%clk 0:00:01.7]} 43... Bxg7 {[%clk 0:00:02]} 44. Bxe5 {[%clk 0:00:01.1]}
44... Rh6+ {[%clk 0:00:01.6]} 0-1

[Event "Late-Titled-Tuesday-Blitz-March-19-2024"]
[Site "Chess.com"]
[Date "2024.03.19"]
[Round "5"]
[White "javierfreilemartin"]
[Black "Pingah9"]
[Result "0-1"]
[WhiteElo "2326"]
[BlackElo "2582"]
[TimeControl "180+1"]
[EndTime "14:55:52 PDT"]
[Termination "Pingah9 won on time"]

1. c4 {[%clk 0:03:00.9]} 1... g6 {[%clk 0:02:59.4]} 2. d4 {[%clk 0:03:00.2]}
2... Bg7 {[%clk 0:02:59]} 3. e4 {[%clk 0:03:00.3]} 3... c5 {[%clk 0:02:58.7]} 4.
d5 {[%clk 0:03:00]} 4... b5 {[%clk 0:02:59.2]} 5. cxb5 {[%clk 0:02:59.1]} 5...
a6 {[%clk 0:02:59.5]} 6. b6 {[%clk 0:02:58.7]} 6... d6 {[%clk 0:02:59.3]} 7. Nc3
{[%clk 0:02:54.4]} 7... Nd7 {[%clk 0:02:59.4]} 8. Nf3 {[%clk 0:02:52.9]} 8...
Qxb6 {[%clk 0:02:58.8]} 9. Nd2 {[%clk 0:02:51.9]} 9... Ngf6 {[%clk 0:02:58.5]}
10. Nc4 {[%clk 0:02:47]} 10... Qc7 {[%clk 0:02:58.2]} 11. Be2 {[%clk 0:02:42.3]}
11... O-O {[%clk 0:02:57.1]} 12. O-O {[%clk 0:02:41.5]} 12... Nb6 {[%clk
0:02:57.1]} 13. Na5 {[%clk 0:02:39.3]} 13... Bd7 {[%clk 0:02:56.2]} 14. Bf4
{[%clk 0:02:31.9]} 14... Rfb8 {[%clk 0:02:45.4]} 15. Bd2 {[%clk 0:02:16.1]}
15... Ne8 {[%clk 0:02:15.9]} 16. Rb1 {[%clk 0:02:12.5]} 16... c4 {[%clk
0:02:14.7]} 17. Be3 {[%clk 0:02:02.8]} 17... Bb5 {[%clk 0:02:12.4]} 18. a4
{[%clk 0:02:00.1]} 18... Nd7 {[%clk 0:01:51.9]} 19. Nc6 {[%clk 0:01:35.5]} 19...
Bxc6 {[%clk 0:01:50.7]} 20. dxc6 {[%clk 0:01:35.4]} 20... Qxc6 {[%clk
0:01:49.1]} 21. Nd5 {[%clk 0:01:35.3]} 21... Kf8 {[%clk 0:01:43.6]} 22. Qc1
{[%clk 0:01:28]} 22... Rc8 {[%clk 0:01:35.8]} 23. Bh6 {[%clk 0:01:24.9]} 23...
e6 {[%clk 0:01:30.4]} 24. Bxg7+ {[%clk 0:01:23]} 24... Kxg7 {[%clk 0:01:29.4]}
25. Ne3 {[%clk 0:01:16.9]} 25... Qxa4 {[%clk 0:01:21.4]} 26. Ng4 {[%clk
0:01:12.6]} 26... Nef6 {[%clk 0:01:07.8]} 27. Qh6+ {[%clk 0:01:09.3]} 27... Kg8
{[%clk 0:01:07.7]} 28. Ne3 {[%clk 0:01:04]} 28... Rab8 {[%clk 0:00:56]} 29. f4
{[%clk 0:00:51.2]} 29... Nxe4 {[%clk 0:00:54.1]} 30. f5 {[%clk 0:00:46.5]} 30...
exf5 {[%clk 0:00:42]} 31. Rxf5 {[%clk 0:00:44.6]} 31... Rxb2 {[%clk 0:00:31.2]}
32. Rbf1 {[%clk 0:00:32.6]} 32... f6 {[%clk 0:00:23.7]} 33. R5f4 {[%clk
0:00:15.4]} 33... Rxe2 {[%clk 0:00:19]} 34. Rxe4 {[%clk 0:00:15.6]} 34... Ne5
{[%clk 0:00:14.2]} 35. Ng4 {[%clk 0:00:14.6]} 35... Rf8 {[%clk 0:00:10.7]} 36.
Nxf6+ {[%clk 0:00:14.3]} 36... Rxf6 {[%clk 0:00:10.8]} 37. Rxf6 {[%clk
0:00:14.8]} 37... Qd1+ {[%clk 0:00:04.4]} 38. Rf1 {[%clk 0:00:14.6]} 38... Qxf1+
{[%clk 0:00:02.4]} 39. Kxf1 {[%clk 0:00:14.2]} 39... Rxe4 {[%clk 0:00:03.2]} 40.
Qd2 {[%clk 0:00:13.4]} 40... Nd3 {[%clk 0:00:02.6]} 41. Qa5 {[%clk 0:00:12.8]}
41... Kf7 {[%clk 0:00:01.6]} 42. Qc7+ {[%clk 0:00:11.8]} 42... Re7 {[%clk
0:00:01.7]} 43. Qxd6 {[%clk 0:00:10.8]} 43... Ne5 {[%clk 0:00:01.4]} 44. Qd5+
{[%clk 0:00:09.9]} 44... Kg7 {[%clk 0:00:01.6]} 45. Kf2 {[%clk 0:00:09.2]} 45...
h5 {[%clk 0:00:02]} 46. h3 {[%clk 0:00:09]} 46... Kf6 {[%clk 0:00:02.4]} 47.
Qd6+ {[%clk 0:00:06.2]} 47... Re6 {[%clk 0:00:02.4]} 48. Qf8+ {[%clk 0:00:05.6]}
48... Kg5 {[%clk 0:00:02.7]} 49. g3 {[%clk 0:00:05.7]} 49... Rf6+ {[%clk
0:00:02.6]} 50. Qxf6+ {[%clk 0:00:04.8]} 50... Kxf6 {[%clk 0:00:03.5]} 0-1

[Event "Late-Titled-Tuesday-Blitz-March-19-2024"]
[Site "Chess.com"]
[Date "2024.03.19"]
[Round "5"]
[White "bitter-cikolata"]
[Black "HanSchut"]
[Result "1-0"]
[WhiteElo "2511"]
[BlackElo "2318"]
[TimeControl "180+1"]
[EndTime "14:55:58 PDT"]
[Termination "bitter-cikolata won on time"]

1. e4 {[%clk 0:03:00.9]} 1... c5 {[%clk 0:02:59.5]} 2. Nf3 {[%clk 0:03:00.6]}
2... d6 {[%clk 0:02:59.8]} 3. d4 {[%clk 0:03:01]} 3... cxd4 {[%clk 0:03:00.7]}
4. Nxd4 {[%clk 0:03:01.8]} 4... Nf6 {[%clk 0:03:01.3]} 5. Nc3 {[%clk 0:03:02]}
5... g6 {[%clk 0:03:01.7]} 6. Be3 {[%clk 0:02:59.3]} 6... Bg7 {[%clk 0:03:01.9]}
7. h3 {[%clk 0:02:57.2]} 7... Nc6 {[%clk 0:02:56.2]} 8. Bc4 {[%clk 0:02:57.4]}
8... O-O {[%clk 0:02:54.2]} 9. Bb3 {[%clk 0:02:57.2]} 9... Na5 {[%clk
0:02:53.8]} 10. O-O {[%clk 0:02:56.5]} 10... Nxb3 {[%clk 0:02:47.5]} 11. axb3
{[%clk 0:02:55.3]} 11... a6 {[%clk 0:02:47.2]} 12. b4 {[%clk 0:02:55.1]} 12...
Bd7 {[%clk 0:02:46.5]} 13. Qd3 {[%clk 0:02:54.1]} 13... Rc8 {[%clk 0:02:43.4]}
14. b5 {[%clk 0:02:51.3]} 14... axb5 {[%clk 0:02:28.8]} 15. Ra7 {[%clk 0:02:47]}
15... b4 {[%clk 0:02:21.6]} 16. Nd5 {[%clk 0:02:43.1]} 16... Nxd5 {[%clk
0:02:11.4]} 17. exd5 {[%clk 0:02:44]} 17... Qc7 {[%clk 0:02:02.2]} 18. Rc1
{[%clk 0:02:15.6]} 18... Ra8 {[%clk 0:02:02]} 19. Nb5 {[%clk 0:02:13]} 19...
Bxb5 {[%clk 0:01:56.8]} 20. Qxb5 {[%clk 0:02:13.6]} 20... Rxa7 {[%clk
0:01:57.1]} 21. Bxa7 {[%clk 0:02:14.5]} 21... Bxb2 {[%clk 0:01:56.3]} 22. Re1
{[%clk 0:02:12.7]} 22... Qxc2 {[%clk 0:01:34.1]} 23. Qxb7 {[%clk 0:02:06.1]}
23... Bf6 {[%clk 0:01:15.2]} 24. Qxb4 {[%clk 0:02:04.2]} 24... Bc3 {[%clk
0:01:04.6]} 25. Qc4 {[%clk 0:02:04.3]} 25... Qd2 {[%clk 0:00:57.4]} 26. Rxe7
{[%clk 0:01:56.5]} 26... Qc1+ {[%clk 0:00:57.1]} 27. Qf1 {[%clk 0:01:51.9]}
27... Qxf1+ {[%clk 0:00:53.2]} 28. Kxf1 {[%clk 0:01:50.4]} 28... Be5 {[%clk
0:00:49.9]} 29. g3 {[%clk 0:01:49.3]} 29... g5 {[%clk 0:00:49.4]} 30. Be3 {[%clk
0:01:47.5]} 30... h6 {[%clk 0:00:45.7]} 31. Rd7 {[%clk 0:01:47.1]} 31... Re8
{[%clk 0:00:32.6]} 32. Ke2 {[%clk 0:01:39.9]} 32... Kg7 {[%clk 0:00:28.6]} 33.
Kd3 {[%clk 0:01:39.1]} 33... Kg6 {[%clk 0:00:28.7]} 34. f4 {[%clk 0:01:38.6]}
34... gxf4 {[%clk 0:00:28.8]} 35. gxf4 {[%clk 0:01:39.5]} 35... Bf6 {[%clk
0:00:25]} 36. Rxd6 {[%clk 0:01:39.6]} 36... Kf5 {[%clk 0:00:25.6]} 37. Rd7
{[%clk 0:01:36.8]} 37... Kg6 {[%clk 0:00:19.1]} 38. Rb7 {[%clk 0:01:29.4]} 38...
h5 {[%clk 0:00:19.2]} 39. d6 {[%clk 0:01:27.6]} 39... Rd8 {[%clk 0:00:19.1]} 40.
d7 {[%clk 0:01:27.9]} 40... Kf5 {[%clk 0:00:18.2]} 41. Bb6 {[%clk 0:01:20.1]}
41... Ra8 {[%clk 0:00:07.9]} 42. Bc5 {[%clk 0:00:56.3]} 42... Ke6 {[%clk
0:00:07.8]} 43. Rb6+ {[%clk 0:00:51.7]} 43... Kf5 {[%clk 0:00:06.5]} 44. Rxf6+
{[%clk 0:00:33.1]} 44... Kxf6 {[%clk 0:00:06.7]} 45. Bb6 {[%clk 0:00:34]} 45...
Ke7 {[%clk 0:00:06.5]} 46. d8=Q+ {[%clk 0:00:34.3]} 46... Rxd8+ {[%clk 0:00:07]}
47. Bxd8+ {[%clk 0:00:34.8]} 47... Kxd8 {[%clk 0:00:07.9]} 48. Ke4 {[%clk
0:00:35.7]} 48... Ke7 {[%clk 0:00:08.2]} 49. Kf5 {[%clk 0:00:36.3]} 49... f6
{[%clk 0:00:02.2]} 50. Kg6 {[%clk 0:00:36]} 50... Ke6 {[%clk 0:00:02.7]} 51. h4
{[%clk 0:00:24.7]} 51... f5 {[%clk 0:00:03.6]} 52. Kg5 {[%clk 0:00:24.5]} 52...
Kf7 {[%clk 0:00:02.6]} 53. Kxf5 {[%clk 0:00:25.4]} 53... Kg7 {[%clk 0:00:03]}
54. Kg5 {[%clk 0:00:26.3]} 54... Kh7 {[%clk 0:00:03.3]} 55. Kxh5 {[%clk
0:00:27.2]} 1-0

[Event "Late-Titled-Tuesday-Blitz-March-19-2024"]
[Site "Chess.com"]
[Date "2024.03.19"]
[Round "5"]
[White "AlexTruskavetsky"]
[Black "Zhigalko_Sergei"]
[Result "0-1"]
[WhiteElo "2656"]
[BlackElo "2878"]
[TimeControl "180+1"]
[EndTime "14:56:19 PDT"]
[Termination "Zhigalko_Sergei won by resignation"]

1. d4 {[%clk 0:03:00.9]} 1... b5 {[%clk 0:03:00.9]} 2. e4 {[%clk 0:02:59.2]}
2... Bb7 {[%clk 0:03:00.6]} 3. Bd3 {[%clk 0:02:58.8]} 3... e6 {[%clk 0:02:58.9]}
4. Nf3 {[%clk 0:02:57.4]} 4... c5 {[%clk 0:02:58.3]} 5. dxc5 {[%clk 0:02:54.8]}
5... Bxc5 {[%clk 0:02:59.2]} 6. O-O {[%clk 0:02:55]} 6... a6 {[%clk 0:02:55.1]}
7. a3 {[%clk 0:02:54.9]} 7... Ne7 {[%clk 0:02:52.9]} 8. b4 {[%clk 0:02:54.9]}
8... Bb6 {[%clk 0:02:46]} 9. Bb2 {[%clk 0:02:54.6]} 9... O-O {[%clk 0:02:45.5]}
10. Nbd2 {[%clk 0:02:54.4]} 10... Nbc6 {[%clk 0:02:44.5]} 11. c4 {[%clk
0:02:54.3]} 11... bxc4 {[%clk 0:02:35.9]} 12. Nxc4 {[%clk 0:02:55.2]} 12... Bc7
{[%clk 0:02:30.9]} 13. Ne3 {[%clk 0:02:52.2]} 13... Ng6 {[%clk 0:02:21.7]} 14.
Rc1 {[%clk 0:02:35.8]} 14... Qe7 {[%clk 0:02:11.1]} 15. Bb1 {[%clk 0:02:26.8]}
15... Rfd8 {[%clk 0:02:08.2]} 16. Qb3 {[%clk 0:02:26.5]} 16... Rac8 {[%clk
0:01:55.3]} 17. Rfd1 {[%clk 0:02:25.6]} 17... Nf4 {[%clk 0:01:47.3]} 18. Rd2
{[%clk 0:02:17.8]} 18... h6 {[%clk 0:01:28]} 19. g3 {[%clk 0:02:17.5]} 19... Ng6
{[%clk 0:01:27.7]} 20. Rcd1 {[%clk 0:02:15.7]} 20... Nge5 {[%clk 0:01:21.7]} 21.
Ne1 {[%clk 0:02:10.4]} 21... Bb6 {[%clk 0:01:10.8]} 22. h3 {[%clk 0:01:28.9]}
22... Qg5 {[%clk 0:00:56.2]} 23. N3g2 {[%clk 0:01:15.6]} 23... Qe7 {[%clk
0:00:35]} 24. Kh2 {[%clk 0:01:09]} 24... d5 {[%clk 0:00:24.9]} 25. exd5 {[%clk
0:01:05.1]} 25... exd5 {[%clk 0:00:19.4]} 26. Rxd5 {[%clk 0:01:02.7]} 26... Rxd5
{[%clk 0:00:16.9]} 27. Rxd5 {[%clk 0:01:02.7]} 27... Bxf2 {[%clk 0:00:12.9]} 28.
Qc2 {[%clk 0:01:02.7]} 28... Qf6 {[%clk 0:00:04.9]} 29. Nd3 {[%clk 0:00:50.5]}
29... Bxg3+ {[%clk 0:00:03.4]} 30. Kxg3 {[%clk 0:00:50.5]} 30... Qf3+ {[%clk
0:00:02.7]} 31. Kh2 {[%clk 0:00:50.4]} 31... Qxd5 {[%clk 0:00:03.4]} 32. Ndf4
{[%clk 0:00:39]} 32... Qd6 {[%clk 0:00:03.7]} 33. Qh7+ {[%clk 0:00:39]} 33...
Kf8 {[%clk 0:00:04.2]} 34. Qh8+ {[%clk 0:00:39.4]} 34... Ke7 {[%clk 0:00:04.4]}
35. Qxg7 {[%clk 0:00:39.9]} 35... Re8 {[%clk 0:00:01.6]} 36. Ne3 {[%clk
0:00:38.6]} 36... Kd7 {[%clk 0:00:01.8]} 37. Bf5+ {[%clk 0:00:36.5]} 37... Kc7
{[%clk 0:00:01.9]} 38. Ned5+ {[%clk 0:00:36.9]} 38... Kb8 {[%clk 0:00:02.6]} 39.
Qg1 {[%clk 0:00:37.2]} 39... Rf8 {[%clk 0:00:02]} 40. Qe3 {[%clk 0:00:36.6]}
40... Re8 {[%clk 0:00:02.1]} 41. Kg2 {[%clk 0:00:36.1]} 41... Rg8+ {[%clk
0:00:02.1]} 42. Kf2 {[%clk 0:00:35.9]} 42... Nc4 {[%clk 0:00:02.8]} 43. Qc3
{[%clk 0:00:34.2]} 43... Nxb2 {[%clk 0:00:02.9]} 44. Qxb2 {[%clk 0:00:35.1]}
44... Ne5 {[%clk 0:00:02.9]} 45. Qd4 {[%clk 0:00:33.1]} 45... Rd8 {[%clk
0:00:02.8]} 46. Be4 {[%clk 0:00:33.2]} 46... f5 {[%clk 0:00:02.4]} 47. Bg2
{[%clk 0:00:33]} 47... Ng6 {[%clk 0:00:02.5]} 48. Nxg6 {[%clk 0:00:29.6]} 48...
Qxg6 {[%clk 0:00:03.1]} 49. Qf4+ {[%clk 0:00:26.8]} 49... Qd6 {[%clk 0:00:03.6]}
50. Qxd6+ {[%clk 0:00:20.2]} 50... Rxd6 {[%clk 0:00:04.5]} 51. Nf4 {[%clk
0:00:20.9]} 51... Rd2+ {[%clk 0:00:03.4]} 52. Kg3 {[%clk 0:00:21.4]} 52... Bxg2
{[%clk 0:00:03.7]} 53. Nxg2 {[%clk 0:00:22.3]} 53... Ra2 {[%clk 0:00:03.7]} 54.
Nh4 {[%clk 0:00:16]} 54... Rxa3+ {[%clk 0:00:04]} 55. Kg2 {[%clk 0:00:16.6]}
55... f4 {[%clk 0:00:03.9]} 56. Nf5 {[%clk 0:00:17.1]} 56... h5 {[%clk
0:00:04.4]} 57. h4 {[%clk 0:00:17]} 57... Rb3 {[%clk 0:00:04.4]} 58. Nd4 {[%clk
0:00:17.4]} 58... Rb2+ {[%clk 0:00:04]} 59. Kf3 {[%clk 0:00:17.9]} 59... Kb7
{[%clk 0:00:04.6]} 60. Ne6 {[%clk 0:00:15.7]} 60... Rxb4 {[%clk 0:00:04.7]} 61.
Ng7 {[%clk 0:00:16.3]} 61... a5 {[%clk 0:00:04.5]} 62. Nxh5 {[%clk 0:00:16.5]}
62... a4 {[%clk 0:00:04.9]} 63. Nf6 {[%clk 0:00:17]} 63... a3 {[%clk 0:00:05.2]}
64. Nd5 {[%clk 0:00:17.9]} 64... Rb3+ {[%clk 0:00:05.5]} 65. Kxf4 {[%clk
0:00:17.9]} 65... a2 {[%clk 0:00:06.4]} 66. h5 {[%clk 0:00:18.2]} 66... a1=Q
{[%clk 0:00:06.7]} 0-1